Cogmind - Beta 14 @@@ ROGUE MODE // 2024.09.08 @ 01:56:17 Player: KURIIRI Result: Destroyed by P-60 Hacker with Shock Rifle Performance ------------- Evolutions (0) 0 Regions Visited (3) 600 Robots Destroyed (35) 175 Value Destroyed (974) 974 Prototype IDs (15) 300 Alien Tech Used (0) 0 Bonus (0) 0 TOTAL SCORE: 2049 Bonus ------- None Cogmind --------- Core Integrity 0/250 Matter 300/300 Energy 100/100 System Corruption 2% Temperature Cool (0) Movement Core (250) Ox4 Location -7/Recycling Parts ------- > --- POWER (1) -------- (None) > --- PROPULSION (2) --- (None) > --- UTILITY (2) ------ Medium Storage Unit Propulsion Shielding > --- WEAPON (2) ------- Powered Hammer > --- INVENTORY (10) --- Flightbrick Propulsion Shielding Hacking Suite Grenade Launcher Enhanced Flamer Piercing Trap Peak State ------------ > --- POWER ------------ Light Ion Engine > --- PROPULSION ------- Spiked Treads Advanced Treads > --- UTILITY ---------- Medium Storage Unit Improved Weapon Shielding > --- WEAPON ----------- Gauss Rifle Powered Hammer > --- INVENTORY -------- Flightbrick Propulsion Shielding Propulsion Shielding Hacking Suite Grenade Launcher Enhanced Flamer Piercing Trap [Rating: 22] Favorites ----------- Power Light Ion Engine Engine Light Ion Engine Propulsion Light Treads Treads Light Treads Utility Medium Storage Unit Device Terrain Scanner Storage Medium Storage Unit Protection Scrap Shield Weapon Medium Laser Energy Gun Medium Laser Ballistic Gun Assault Rifle Launcher Grenade Launcher Special Weapon Mining Laser Impact Weapon Powered Hammer Slashing Weapon Makeshift Sword Build | -11 -10 -10 -7 ------- Run | Yrd Mat Sub Rec Slots Evolved . | . . . . Power . | . . . . Propulsion . | . . . . Utility . | . . . . Weapon . | . . . . Parts Attached 41 | 6 13 16 6 Power 3 | 1 1 1 . Engine 3 | 1 1 1 . Core . | . . . . Reactor . | . . . . Propulsion 6 | 2 1 2 1 Treads 6 | 2 1 2 1 Leg . | . . . . Wheel . | . . . . Hover . | . . . . Flight . | . . . . Utility 13 | 1 4 5 3 Device 1 | . . 1 . Storage 3 | 1 1 1 . Processor . | . . . . Hackware . | . . . . Protection 9 | . 3 3 3 Artifact . | . . . . Weapon 19 | 2 7 8 2 Energy Gun 2 | 1 1 . . Energy Cannon . | . . . . Ballistic Gun 4 | 1 2 . 1 Ballistic Cannon . | . . . . Launcher 8 | . 4 4 . Special Weapon 1 | . . 1 . Impact Weapon 1 | . . . 1 Slashing Weapon 3 | . . 3 . Piercing Weapon . | . . . . Special Melee Weapon . | . . . . Unidentified Prototypes . | . . . . Parts Lost 8 | . 1 2 5 Power 2 | . . 1 1 Propulsion 2 | . . . 2 Utility 1 | . . . 1 Weapon 3 | . 1 1 1 Highest Loss Streak 5 | . 1 1 5 To Critical Strikes . | . . . . Average Slot Usage (%) 93 | . 97 89 99 Engine 13 | . 14 13 14 Treads 27 | . 28 28 27 Storage 9 | . 14 5 14 Protection 12 | . 11 11 13 Energy Gun 13 | . 13 14 7 Ballistic Gun 3 | . 8 . 6 Launcher 8 | . 5 12 . Slashing Weapon 1 | . . 1 7 Peak Build Rating 22 | 6 8 14 22 Average Rating 9 | 4 7 9 17 On Entrance 7 | . 6 8 14 Naked Turns . | . . . . Heaviest Build 26 | 14 23 26 22 Greatest Support 42 | 40 40 40 42 Greatest Overweight (x) . | . . . . Average Overweight (x) . | . . . . Largest Inventory Capacity 10 | 8 10 10 10 Average Capacity 8 | 7 9 6 10 Most Carried 10 | 2 10 10 10 Average Carried 6 | . 7 6 9 Final Capacity 10 | 8 10 10 10 Final Carried 10 | 2 10 8 9 Class Distribution -------------------- 100% | Mutant Dominant Class ---------------- Mutant | -10/Materials Mutant | -10/Subcaves Mutant | -7/Recycling Resources | -11 -10 -10 -7 ----------- Run | Yrd Mat Sub Rec Matter Collected 1249 | 188 494 517 50 Remotely . | . . . . Salvage Created 839 | . 472 367 . Parts 65 | . 32 33 . Haulers Intercepted 2 | . 2 . . Recyclers Shooed . | . . . . Parts Field Recycled . | . . . . Retrieved Matter . | . . . . Parts Self-Destructed 27 | . . 27 . Prevented . | . . . . Kills | -11 -10 -10 -7 ------- Run | Yrd Mat Sub Rec Combat Hostiles Destroyed 25 | . 11 14 . Melee 1 | . . 1 . Guns 11 | . 8 3 . AOE 13 | . 3 10 . Classes Destroyed 10 | . 7 3 . Worker 1 | . 1 . . Builder 1 | . 1 . . Hauler 2 | . 2 . . Operator 2 | . 2 . . Turret 2 | . . 2 . Watcher 2 | . 2 . . Swarmer 5 | . 3 2 . Grunt 8 | . 8 . . Sentry 1 | . . 1 . Subdweller 11 | . . 11 . Best Kill Streak 4 | . 4 2 . Combat Bots Only 4 | . 4 2 . Max Kills in Single Turn 2 | . 2 2 . Gunslinging . | . . . . Exploded 2 | . 1 2 . Melee 1 | . . 1 . Uniques/NPCs Destroyed . | . . . . Combat | -11 -10 -10 -7 -------- Run | Yrd Mat Sub Rec Hostile Shots Fired 229 | . 48 86 95 Missed 76 | . 17 30 29 Damage Taken 1861 | . 393 857 611 Core 259 | . 31 35 193 Absorbed by Shields . | . . . . Redirected to Shielding 50 | . 6 . 44 Regen/Repaired (Parts) 77 | . 77 . . Core Remaining (%) 100 | 100 . . . Volleys Fired 102 | . 64 38 . Largest 2 | . 2 2 . Hottest 150 | . 80 150 . Shots Fired 193 | . 122 71 . Gun 142 | . 106 36 . Cannon . | . . . . Launcher 47 | . 16 31 . Special 4 | . . 4 . Kinetic 47 | . 47 . . Thermal 99 | . 59 40 . Explosive 47 | . 16 31 . Electromagnetic . | . . . . Robot Hit Streak 8 | . 8 8 . Robot Miss Streak 6 | . 6 1 . Penetration Max . | . . . . Secondary Targets . | . . . . Shots Hit Robots 88 | . 61 24 3 Core Hits 62 | . 35 26 1 Critical Kills . | . . . . Critical Parts Destroyed . | . . . . Critical Strikes 4 | . 3 1 . Burn 4 | . 3 1 . Melee Attacks 23 | . . 18 5 Impact 5 | . . . 5 Slashing 18 | . . 18 . Piercing . | . . . . Sneak Attacks . | . . . . Combat Hostiles . | . . . . Follow-up Attacks . | . . . . Damage Inflicted 2474 | . 1154 1245 75 Guns 813 | . 661 152 . Cannons . | . . . . Explosions 1544 | . 484 1060 . Melee 108 | . . 33 75 Ramming 9 | . 9 . . Kinetic 339 | . 339 . . Thermal 474 | . 322 152 . Explosive 1544 | . 484 1060 . Electromagnetic . | . . . . Impact 75 | . . . 75 Slashing 33 | . . 33 . Piercing . | . . . . Highest Corruption 2 | . 1 1 2 Average Corruption 1 | . 1 1 1 Corruption Purged . | . . . . Corruption Blocked . | . . . . Effects 28 | . 2 20 6 Message Errors 5 | . . 3 2 Matter Fused 9 | . 1 7 1 Energy Discharges 4 | . . 2 2 Data Loss (minor) 6 | . . 6 . Data Loss (major) 1 | . . . 1 Misfires 3 | . 1 2 . Overload Shots . | . . . . Overflow Damage 15 | . 15 . . Projectiles . | . . . . Explosions 15 | . 15 . . Melee . | . . . . Knockbacks . | . . . . Impact . | . . . . Kinetic . | . . . . Secondary . | . . . . Self-Inflicted Damage 85 | . 56 29 . Shots 4 | . 2 2 . Rammed 3 | . 3 . . Targets Rammed 3 | . 3 . . Kicked . | . . . . Crushed . | . . . . Highest Temperature 213 | . 213 4 1 Average Temperature 48 | . 49 4 1 Received Heat Transfer 432 | . 174 162 96 Siege Activations . | . . . . Robots Corrupted . | . . . . Combat Hostiles . | . . . . Parts Fried . | . . . . Impact Corruptions . | . . . . Robots Melted . | . . . . Combat Hostiles . | . . . . Parts Melted 2 | . 2 . . Heat Transferred 1702 | . 1184 518 . Parts Sabotaged . | . . . . Parts Stolen . | . . . . Parts Stripped . | . . . . Power Chain Reactions . | . . . . Alert | -11 -10 -10 -7 ------- Run | Yrd Mat Sub Rec Peak Influence 170 | . 170 . 40 Initial 31 | . . . 31 Average 57 | . 71 . 27 Maximum Alert Level . | . . . . Low Security (%) 100 | 100 100 . 100 Level 1 . | . . . . Level 2 . | . . . . Level 3 . | . . . . Level 4 . | . . . . Level 5 . | . . . . High Security . | . . . . Max Security . | . . . . Squads Dispatched 2 | . 2 . . Investigation 1 | . 1 . . Extermination . | . . . . Reinforcement 1 | . 1 . . Assault . | . . . . Garrison . | . . . . Intercept . | . . . . Searches Triggered . | . . . . Construction Impeded . | . . . . Haulers Reinforced . | . . . . Active Scanning Responses . | . . . . Cargo Convoy Interrupts . | . . . . Stealth | -11 -10 -10 -7 --------- Run | Yrd Mat Sub Rec Distress Signals 2 | . 2 . . Communications Jammed . | . . . . Distress Signals . | . . . . Times Spotted 53 | . 27 19 7 Peak Tracking Total 7 | . 3 6 7 Tactical Retreats 3 | . . 3 . Traps | -11 -10 -10 -7 ------- Run | Yrd Mat Sub Rec Traps Triggered 1 | . . 1 . Indirectly . | . . . . Trap Hack Attempts . | . . . . Triggered . | . . . . Disarmed . | . . . . Reprogrammed . | . . . . Reused . | . . . . Traps Extracted . | . . . . Installed . | . . . . Triggered . | . . . . Most Traps Carried 1 | . . 1 1 Machines | -11 -10 -10 -7 ---------- Run | Yrd Mat Sub Rec Machines Disabled 6 | . 2 4 . Max in Single Turn 3 | . 1 3 . Machines Repaired . | . . . . Machines Dismantled . | . . . . Machines Sabotaged . | . . . . Overloaded Fab Kills . | . . . . Hacking | -11 -10 -10 -7 --------- Run | Yrd Mat Sub Rec Machines Accessed 10 | . 5 2 3 Terminals 7 | . 4 . 3 Fabricators . | . . . . Repair Stations 1 | . 1 . . Recycling Units . | . . . . Scanalyzers . | . . . . Garrison Access . | . . . . Total Hacks 42 | . 20 12 10 Successful 28 | . 10 12 6 Failed 14 | . 10 . 4 Catastrophic . | . . . . Database Lockouts . | . . . . Manual 26 | . 17 1 8 Terminals 28 | . 18 . 10 Fabricators . | . . . . Repair Stations 2 | . 2 . . Recycling Units . | . . . . Scanalyzers . | . . . . Garrison Access . | . . . . Terminal Hacks 18 | . 3 12 3 Record 11 | . . 11 . Prototype ID Bank 2 | . . . 2 Terminal Index 1 | . . . 1 Locate Traps 2 | . 2 . . Zone Layout 1 | . 1 . . Derelict Proto ID Bank 1 | . . 1 . Fabricator Hacks . | . . . . Repair Station Hacks 2 | . 2 . . Scan Component 1 | . 1 . . Repair 1 | . 1 . . Recycling Unit Hacks . | . . . . Scanalyzer . | . . . . Garrison Access Hacks . | . . . . Unauthorized Hacks 8 | . 5 . 3 Terminals 8 | . 5 . 3 Assimilate 1 | . 1 . . Botnet 6 | . 3 . 3 Operators 1 | . 1 . . Fabricators . | . . . . Repair Stations . | . . . . Recycling Units . | . . . . Scanalyzers . | . . . . Garrison Access . | . . . . Data Cores Recovered . | . . . . Used . | . . . . Hacking Detections 8 | . 5 . 3 Full Trace Events 4 | . 4 . . Feedback Events 1 | . 1 . . Corruption 1 | . 1 . . Feedback Blocked . | . . . . Robot Schematics Acquired . | . . . . Robots Built . | . . . . Authchips . | . . . . Time . | . . . . Total Robot Build Rating . | . . . . Part Schematics Acquired . | . . . . Parts Built . | . . . . Authchips . | . . . . Time . | . . . . Total Part Build Rating . | . . . . Parts Repaired 1 | . 1 . . Time 26 | . 26 . . Parts Recycled . | . . . . Recycled Matter . | . . . . Retrieved Matter . | . . . . Retrieved Components . | . . . . Parts Scanalyzed . | . . . . Part Schematics Acquired . | . . . . Parts Damaged . | . . . . Bothacking | -11 -10 -10 -7 ------------ Run | Yrd Mat Sub Rec Used RIF Installer . | . . . . Robots Hacked . | . . . . Non-combat . | . . . . Combat . | . . . . Robot Hacks Applied . | . . . . Relay Couplers Released . | . . . . Fabnet Peak Effective % . | . . . . Robots Rewired . | . . . . Allies Hacked . | . . . . Hacks Repelled . | . . . . Allies | -11 -10 -10 -7 -------- Run | Yrd Mat Sub Rec Total Allies . | . . . . Largest Group . | . . . . Highest-Rated Group . | . . . . Highest-Rated Ally . | . . . . Total Orders . | . . . . Ally Attacks . | . . . . Total Damage . | . . . . Kills . | . . . . Allies Corrupted . | . . . . Allies Melted . | . . . . Intel | -11 -10 -10 -7 ------- Run | Yrd Mat Sub Rec Robot Analysis Total . | . . . . Derelict Logs Recovered 2 | . . 2 . Drone Launches . | . . . . Drone Recoveries . | . . . . Exploration | -11 -10 -10 -7 ------------- Run | Yrd Mat Sub Rec Turns Passed 4037 | 82 1395 2083 477 Spaces Moved 2169 | 50 709 1124 286 Core 8 | 8 . . . Treads 2161 | 42 709 1124 286 Legs . | . . . . Wheels . | . . . . Hover . | . . . . Flight . | . . . . Fastest Speed 50 | 50 160 160 152 Average Speed 159 | 142 160 160 156 Slowest Speed 160 | 160 160 160 160 Overloaded Moves . | . . . . Propulsion Burnouts . | . . . . Robots Hopped . | . . . . Cave-ins Triggered . | . . . . Exploration Rate (%) 56 | 4 92 73 57 Regions Visited 3 Branch Regions 2 Pre-discovered Areas . | . . . . Known Exits Taken 1 | . . 1 . Unknown Exits Taken 2 | 1 1 . . Scrap Searched 2 | . . 2 . Spaces Dug 9 | . 8 . 1 Terrain Destroyed 199 | . 74 124 1 Melee 1 | . . . 1 Projectile . | . . . . AOE 198 | . 74 124 . Terrain Rammed . | . . . . Walls Destroyed . | . . . . Machines Disabled . | . . . . Actions | -11 -10 -10 -7 --------- Run | Yrd Mat Sub Rec Total 2525 | 58 845 1316 306 Wait 133 | . 40 90 3 Move 2166 | 49 708 1123 286 Hop . | . . . . Pick Up 24 | 3 11 8 2 Fast Attach 12 | 5 2 1 4 Attach 6 | 1 1 3 1 Detach 1 | . 1 . . Swap 23 | . 10 12 1 Drop 23 | . 5 14 4 Fire 102 | . 64 38 . Melee 23 | . . 18 5 Ram . | . . . . Kick . | . . . . Crush 3 | . 3 . . Escape Stasis . | . . . . Rewire . | . . . . Trap . | . . . . Miscellaneous 9 | . . 9 . Route ------- -11/Scrapyard -10/Materials (discovered 6 exits: [*Mat x3] / [*Min x2] / *Sub) -10/Subcaves (discovered 3 exits: [*Mat x2] / *Rec) -7/Recycling (discovered 1 exit: [*Fac]) History --------- Turn | Location | Event 4 | -11/Scrapyard | Discovered new exit (range 15) 83 | -11/Scrapyard | Entered Materials 316 | -10/Materials | Build established: Mutant 371 | -10/Materials | Discovered new exit (range 8) 554 | -10/Materials | Discovered new exit (range 13) 683 | -10/Materials | Derelicts attacked the area 740 | -10/Materials | Discovered new exit (range 16) 847 | -10/Materials | Discovered new exit (range 13) 1155 | -10/Materials | Repaired Lgt. Armor Plating 1304 | -10/Materials | Discovered new exit (range 16) 1445 | -10/Materials | Discovered new exit (range 11) 1478 | -10/Materials | Entered Subcaves 1547 | -10/Subcaves | A swath of the cavern ceiling suddenly collapsed 1949 | -10/Subcaves | Learned Materials stockpile data 2087 | -10/Subcaves | Shifting Twisted Machinery released Flamer 2136 | -10/Subcaves | Shifting Twisted Machinery released Scrap Shield 2238 | -10/Subcaves | Discovered new exit (range 14) 2266 | -10/Subcaves | Visited Clippyterm 2270 | -10/Subcaves | Identified exit to Recycling 2393 | -10/Subcaves | Discovered new exit (range 15) 2423 | -10/Subcaves | Shifting Twisted Machinery released Humpback 2431 | -10/Subcaves | Shifting Twisted Machinery released Mak. Light Armor Plating 2466 | -10/Subcaves | Ambushed by Subdweller buried in earth 2688 | -10/Subcaves | Learned location of 1 exit from Materials 2754 | -10/Subcaves | A swath of the cavern ceiling suddenly collapsed 2789 | -10/Subcaves | Shifting Twisted Machinery released Mak. Sword 3382 | -10/Subcaves | Visited 4L-MR0's lab 3436 | -10/Subcaves | Found Flightbrick 3561 | -10/Subcaves | Entered Recycling 3976 | -7/Recycling | Discovered new exit (range 16) 4030 | -7/Recycling | Core integrity fell below 50% 4037 | -7/Recycling | Core integrity fell below 20% 4038 | -7/Recycling | Destroyed by P-60 Hacker with Shock Rifle Last Messages --------------- Found 6 terminals. Downloaded coordinate data. 03907_ Connecting with Terminal... >>Trojan(Botnet) Trojan loaded successfully. Testing... Terminal linked with 2 systems. Awaiting botnet instructions. >>Prototypes Downloading prototype IDs... Antimatter Cannon Hpw. Field Laser 03976_ EXIT=FOUND 03987_ System corrupted: Matter fused (-7). 04014_ Y-54 Guardian springs to life. 04019_ Imp. Weapon Shielding destroyed. 04029_ Spk. Treads destroyed. 04032_ Gauss Rifle destroyed. 04032_ Adv. Treads destroyed. 04033_ Lgt. Ion Engine destroyed. Map ----- +----------------------------------------------------+ | ????????????????????????????????# #??#= | | ????????????????????????????????##### ##??# | | ?????????????????????????????????????##???# | | ???????????????????????????????????######### | | ?????????????????????????????????? | | ?????????????????????????????????? | | ?????????????????????????????????? | | ????????????????????????????????????#+###### | | ???????????????????????????????????????????? | | ???????????????? ??????????????????????????? | | ????????????# ? ??????????????????????????? | | ????????????? "" ??????????????????????????? | | ????????????? T ??????????????????????????? | | ????????????? ??????????????????????????? | | ????????????? ??????????????????????????? | | ?????????????# ??????????????????????????? | | ?????????????# #?????????????????????????? | | ???????????### #???####################### | | ???????????? # ???# | | ?????????????/ ##??# ##### | | ?????????????# !!??# #???# | | ?????????????# !???# #???# """ #######+# | | ?????????????# !???# #???# """ # | | ?????????????# ##??# #???# """ # " | | ?????????????# ;####+##### # T | | ?????????????# #Y@ ## # """" " | | ?????????????# # + """ # """" | | ????????????## # ## """ # """" | | ????????????# #p ## """ # """" | | ????????????## /p ## ? # | | ????????????# #Y ## ? ###"T"### | | ????????????## # ## """ #?#"""#?? | | ?????????????# # #? "?" ??#####?? | | ?????????????# # #? ??" #???????? | | ??????######## ########+## #???????? | | ??????# #???????? | | ??????# < ############"Y"##?????????? | | ??????# #?????????????????????????? | | ??????############?????????????????????????? | | ???????????????????????????????????????????? | | | | | | | | | | | | | | | | | | | | | +----------------------------------------------------+ Best States ------------- Heat Dissipation 25 Energy Generation 10 Energy Capacity 250 Matter Stores 300 Matter Capacity 300 Sight Range 16 Terrain Scan Range 14 Terrain Scan Density 10 Armor Coverage 800 Propulsion Shielding 33 Weapon Shielding 66 Evasion (%) 40 Recoil Reduction 2 Item Schematics ----------------- None Robot Schematics ------------------ None Fabricated ------------ Nothing Alien Tech Used ----------------- None Achievements -------------- Maybe Next Time I'll Detach My Launcher Challenges ------------ None Game ------ Seed SpacefoldMassShield Manual? 0 Play Time 00:30:38 Cumulative 66.0 hours Start 2024.09.08 @ 00:46:25 End 2024.09.08 @ 01:56:17 Sessions 3 Manual Loads 0 Difficulty Rogue Special Mode None Game No. 41 Rogue 5 Adventurer 36 Explorer 0 Win Type - Total 1 Types 1/0/0/0/0/0/0/0/0 Lore% 39 Gallery% 45 Achievement% 45 Wizard Run 0 Options --------- Layout 1 ASCII 0 Keyboard 0 Movement Numpad Keybinds 0 Fullscreen 1 Font 48/Smallcaps Map View 50x35 Zoom Use 0% Tactical HUD 1 Map Filters NONE Filters NONE Steam 1 RUN: 70f201d2-2d84-4e79-bdf7-363374562d75